bitfinex/quotes_SOLUSD_20241024
["timestamp","ask_amount","ask_price","bid_price","bid_amount"]
[1729772731457,27.5527,174.23,174.19,18.43465532]
[1729772732864,0.37647,174.22,174.19,18.43465532]
[1729772733363,0.37647,174.22,174.18,18.43465532]
[1729772733764,9.21732766,174.21,174.16,18.43465532]
[1729772733966,18.81112532,174.2,174.09,15.4431]
[1729772734164,0.25098,174.18,174.14,18.43465532]
[1729772738576,0.25098,174.16,174.09,15.4431]
[1729772738784,0.12549,174.14,174.1,18.43465532]
[1729772739285,0.12549,174.13,174.05,16.0719]
[1729772739458,0.12549,174.12,174.07,18.43465532]
[1729772739662,0.12549,174.11,174.07,18.43465532]
[1729772740579,0.12549,174.11,174.08,18.43465532]
[1729772741377,0.12549,174.11,174.07,18.43465532]
[1729772742778,0.12549,174.11,174.05,16.0719]
[1729772742779,6.1564,174.16,174.08,18.43465532]
[1729772742970,18.68563532,174.14,174.09,18.43465532]
[1729772744269,0.12549,174.13,174.09,18.43465532]
[1729772744870,0.12549,174.13,174.11,18.43465532]
[1729772745061,0.12549,174.13,174.1,18.43465532]
[1729772745463,0.12549,174.13,174.05,16.0719]
[1729772745782,0.12549,174.13,174.1,18.43465532]
[1729772749074,15.2922,174.17,174.12,18.43465532]
[1729772749277,0.12549,174.16,174.14,18.43465532]
[1729772751463,0.12549,174.16,174.13,18.43465532]
[1729772752188,0.12549,174.16,174.12,18.43465532]
[1729772752565,0.12549,174.16,174.13,18.43465532]
[1729772753871,0.12549,174.16,174.12,18.43465532]
[1729772757862,0.12549,174.14,174.05,16.0719]
[1729772758063,0.12549,174.13,174.09,18.43465532]
[1729772759784,0.25098,174.12,174.04,5.98769952]
[1729772759992,0.12549,174.1,174.05,18.43465532]
[1729772760285,0.12549,174.1,174.09,18.43465532]
[1729772760477,0.25098,174.13,174.09,18.43465532]
[1729772760676,0.12549,174.12,174.1,18.43465532]
[1729772760873,0.12549,174.12,174.09,18.43465532]
[1729772761080,0.12549,174.12,174.08,18.43465532]
[1729772763492,0.12549,174.12,174.09,18.43465532]
[1729772766291,15.4588,174.16,174.11,18.43465532]
[1729772766498,5.7415,174.17,174.13,18.43465532]
[1729772766705,0.12549,174.16,174.12,18.43465532]
[1729772766992,5.7415,174.17,174.12,18.43465532]
[1729772767494,0.12549,174.16,174.12,18.43465532]
[1729772767701,0.12549,174.16,174.13,18.43465532]
[1729772767895,0.12549,174.16,174.12,18.43465532]
[1729772768281,0.37647,174.16,174.12,18.43465532]
[1729772769383,0.37647,174.16,174.11,18.43465532]
[1729772769874,6.11837,174.16,174.07,15.2702]
[1729772770077,0.12549,174.12,174.03,15.603]
[1729772770272,0.12549,174.12,174.08,18.43465532]
[1729772770580,0.25098,174.13,174.09,18.43465532]
[1729772771387,0.25098,174.13,174.08,18.43465532]
[1729772772073,0.25098,174.13,174.03,15.603]
[1729772772074,0.25098,174.13,174.09,18.43465532]
[1729772772278,5.99408,174.13,174.09,18.43465532]
[1729772774301,5.99408,174.13,174.08,18.43465532]
[1729772775287,24.42873532,174.13,174.03,15.603]
[1729772775483,0.25098,174.1,174.03,15.603]
[1729772775705,0.12549,174.09,174.05,18.43465532]
[1729772777001,0.12549,174.09,174.01,12.56465287]
[1729772777002,0.12549,174.09,174.04,18.43465532]
[1729772777206,0.12549,174.09,174.05,18.43465532]
[1729772777392,0.12549,174.09,174.01,12.56465287]
[1729772777393,0.12549,174.08,174.04,18.43465532]
[1729772780492,0.12549,174.08,174.01,6.57356495]
[1729772780697,0.12549,174.07,174.04,18.43465532]
[1729772782806,0.12549,174.07,174.03,18.43465532]
[1729772782983,0.12549,174.07,174.04,18.43465532]
[1729772783806,0.12549,174.07,174.05,18.43465532]
[1729772784109,0.12549,174.12,174.06,18.43465532]
[1729772784408,5.7429,174.13,174.09,18.43465532]
[1729772785209,0.12549,174.12,174.09,18.43465532]
[1729772785581,0.25098,174.12,174.09,18.43465532]
[1729772786090,0.25098,174.13,174.1,18.43465532]
[1729772786891,0.25098,174.14,174.11,18.43465532]
[1729772787396,0.12549,174.13,174.11,18.43465532]
[1729772787796,0.12549,174.13,174.12,18.43465532]
[1729772789408,0.25098,174.12,174.0,16.2252]
[1729772789595,0.25098,174.12,174.07,18.43465532]
[1729772789788,0.12549,174.11,174.08,18.43465532]
[1729772791912,0.25098,174.12,174.08,18.43465532]
[1729772792089,0.12549,174.11,174.08,18.43465532]
[1729772792709,0.12549,174.11,174.09,18.43465532]
[1729772793484,0.12549,174.11,174.08,18.43465532]
[1729772794588,0.25098,174.1,174.02,20.0]
[1729772794787,0.25098,174.1,174.07,18.43465532]
[1729772796407,0.12549,174.12,174.07,18.43465532]
[1729772796603,0.12549,174.11,174.08,18.43465532]
[1729772797295,0.12549,174.11,174.09,18.43465532]
[1729772797708,0.12549,174.15,174.1,18.43465532]
[1729772797890,0.25098,174.15,174.11,18.43465532]
[1729772798303,0.12549,174.14,174.11,18.43465532]
[1729772798495,0.25098,174.14,174.1,18.43465532]
[1729772798898,5.99348,174.14,174.1,18.43465532]
[1729772799098,0.25098,174.14,174.11,18.43465532]
[1729772801000,0.12549,174.12,174.02,20.0]
[1729772801214,0.12549,174.1,174.05,18.43465532]
[1729772801799,0.12549,174.1,174.06,18.43465532]
[1729772802104,0.12549,174.11,174.06,18.43465532]
[1729772802500,0.12549,174.1,174.06,18.43465532]
[1729772803424,6.0429,174.22,174.09,55.30396596]
[1729772803717,22.1255,174.22,174.17,18.43465532]
[1729772803917,11.68644744,174.25,174.19,18.43465532]
[1729772804215,11.68644744,174.25,174.13,15.3795]
[1729772804216,5.7388,174.25,174.2,18.43465532]
[1729772804413,24.17345532,174.25,174.14,20.0]
[1729772804618,24.17345532,174.25,174.19,18.43465532]
[1729772805321,5.7388,174.25,174.19,18.43465532]
[1729772805500,24.17345532,174.25,174.19,18.43465532]
[1729772805708,0.37647,174.24,174.19,18.43465532]
[1729772806014,0.25098,174.24,174.19,18.43465532]
[1729772806400,0.12549,174.23,174.19,28.77955506]
[1729772806596,28.90504506,174.21,174.15,28.77955506]
[1729772806917,0.12549,174.2,174.15,28.77955506]
[1729772809322,0.12549,174.2,174.16,28.77955506]
[1729772809745,0.12549,174.2,174.15,28.77955506]
[1729772809909,16.0826,174.26,174.19,28.77955506]
[1729772810222,21.8213,174.26,174.22,28.77955506]
[1729772810418,16.0826,174.26,174.22,28.77955506]
[1729772811311,0.12549,174.25,174.22,28.77955506]
[1729772812219,0.25098,174.25,174.22,28.77955506]
[1729772812601,0.25098,174.25,174.21,28.77955506]
[1729772813500,0.25098,174.25,174.2,28.77955506]
[1729772814012,0.25098,174.25,174.21,28.77955506]
[1729772814218,0.25098,174.25,174.22,28.77955506]
[1729772815725,0.25098,174.27,174.23,28.77955506]
[1729772816613,34.76873506,174.27,174.22,28.77955506]
[1729772817417,5.98918,174.27,174.22,28.77955506]
[1729772818501,0.12549,174.23,174.19,28.77955506]
[1729772818724,0.12549,174.23,174.18,28.77955506]
[1729772818927,0.12549,174.23,174.19,28.77955506]
[1729772819225,29.03053506,174.24,174.15,20.0]
[1729772819398,29.03053506,174.24,174.18,28.77955506]
[1729772820109,0.12549,174.23,174.18,28.77955506]
[1729772820306,0.25098,174.22,174.17,28.77955506]
[1729772820503,0.12549,174.2,174.16,28.77955506]
[1729772820725,0.12549,174.2,174.18,28.77955506]
[1729772822200,16.2955,174.24,174.19,28.77955506]
[1729772822405,0.12549,174.23,174.18,28.77955506]
[1729772822698,28.90504506,174.23,174.18,28.77955506]
[1729772823109,0.12549,174.21,174.16,28.77955506]
[1729772824212,0.25098,174.22,174.17,28.77955506]
[1729772824422,0.25098,174.22,174.18,28.77955506]
[1729772824739,0.25098,174.22,174.17,28.77955506]
[1729772825423,0.12549,174.2,174.16,28.77955506]
[1729772825624,29.03053506,174.2,174.14,28.77955506]
[1729772825928,0.12549,174.2,174.16,28.77955506]
[1729772826107,0.25098,174.21,174.16,28.77955506]
[1729772827121,0.25098,174.19,174.14,28.77955506]
[1729772828925,28.77955506,174.16,174.09,15.3029]
[1729772829118,28.77955506,174.15,174.1,28.77955506]
[1729772829429,0.12549,174.14,174.1,28.77955506]
[1729772830108,0.25098,174.14,174.1,28.77955506]
[1729772831332,0.25098,174.14,174.09,28.77955506]
[1729772831519,0.12549,174.1,174.05,34.75483785]
[1729772831824,0.12549,174.1,174.08,28.77955506]
[1729772832010,0.25098,174.12,174.08,28.77955506]
[1729772832212,0.25098,174.12,174.07,28.77955506]
[1729772832833,29.03053506,174.12,174.07,28.77955506]
[1729772833333,29.03053506,174.11,174.05,14.38977753]
[1729772833537,14.64075753,174.1,174.05,14.38977753]
[1729772833827,0.25098,174.1,174.05,28.77955506]
[1729772834407,0.25098,174.08,174.04,28.77955506]
[1729772834627,0.12549,174.08,174.05,28.77955506]
[1729772834811,29.15602506,174.1,174.04,28.77955506]
[1729772835126,34.89982506,174.1,174.04,28.77955506]
[1729772835829,34.89982506,174.1,174.05,28.77955506]
[1729772837409,5.7431,174.13,174.07,28.77955506]
[1729772837636,28.77955506,174.14,174.09,28.77955506]
[1729772837936,0.12549,174.13,174.09,28.77955506]
[1729772838108,0.12549,174.13,174.08,28.77955506]
[1729772838308,14.51526753,174.13,174.07,28.77955506]
[1729772838519,28.90504506,174.13,174.07,28.77955506]
[1729772839236,0.12549,174.11,174.06,28.77955506]
[1729772839434,29.03053506,174.11,174.06,28.77955506]
[1729772840233,0.25098,174.11,174.06,28.77955506]
[1729772840636,0.12549,174.1,174.06,28.77955506]
[1729772841112,5.99438,174.11,174.06,28.77955506]
[1729772841535,34.77393506,174.11,174.06,28.77955506]
[1729772842324,0.12549,174.09,174.01,20.0]
[1729772842533,0.25098,174.09,174.04,28.77955506]
[1729772843718,29.03053506,174.09,174.04,28.77955506]
[1729772844640,29.03053506,174.07,174.02,28.77955506]
[1729772844943,29.03053506,174.07,174.0,21.41711975]
[1729772844944,0.25098,174.07,174.04,28.77955506]
[1729772845636,0.25098,174.09,174.05,33.44955506]
[1729772845834,0.12549,174.08,174.06,28.77955506]
[1729772846034,0.12549,174.08,174.05,33.44955506]
[1729772846237,0.12549,174.08,174.06,28.77955506]
[1729772846537,0.12549,174.08,174.05,33.44955506]
[1729772847624,0.12549,174.08,174.05,4.67]
[1729772848346,0.12549,174.07,174.05,4.67]
[1729772848728,0.12549,174.06,174.05,4.67]
[1729772858947,0.37647,174.06,174.05,4.67]
[1729772860054,0.25098,174.06,174.05,4.67]
[1729772860349,0.12549,174.08,174.05,4.67]
[1729772860552,0.25098,174.08,174.05,4.67]
[1729772861051,5.99548,174.08,174.05,4.67]
[1729772862266,0.12549,174.06,174.05,4.67]
[1729772863459,48.35225854,174.06,174.05,4.5446]
[1729772864466,52.64631515,174.06,174.05,4.5446]
[1729772866257,63.04777137,174.06,174.05,4.5446]
[1729772867544,58.75371476,174.06,174.05,4.5446]
[1729772869543,34.85134076,174.06,174.05,4.5446]
[1729772870858,34.97683076,174.06,174.05,4.5446]
[1729772873170,0.12549,174.06,174.05,4.5446]
[1729772874563,29.646174,174.1,174.05,4.5446]
[1729772874861,5.7438,174.1,174.05,33.39986076]
[1729772875444,0.12549,174.09,174.06,28.85526076]
[1729772876170,0.25098,174.09,174.06,28.85526076]
[1729772879365,0.25098,174.09,174.05,33.39986076]
[1729772880654,5.99518,174.09,174.05,33.39986076]
[1729772881359,34.85044076,174.09,174.05,4.5446]
[1729772881670,29.10624076,174.07,174.05,4.5446]
[1729772881964,5.7442,174.09,174.05,4.5446]
[1729772882368,0.25098,174.08,174.05,4.5446]
[1729772884262,0.25098,174.08,174.06,0.5805567]
[1729772885161,5.99568,174.08,174.06,0.5805567]
[1729772886252,24.4515994,174.08,174.06,0.5805567]
[1729772886563,5.99568,174.08,174.06,0.5805567]
[1729772889862,18.8323894,174.07,174.06,0.5805567]
[1729772890259,0.37647,174.07,174.06,0.5805567]
[1729772891553,5.7425,174.14,174.06,19.0364761]
[1729772891774,11.17258217,174.13,174.08,18.4559194]
[1729772892072,4.42263699,174.12,174.08,18.4559194]
[1729772892258,0.12549,174.12,174.08,18.4559194]
[1729772892458,0.12549,174.12,174.07,18.4559194]
[1729772892855,0.12549,174.1,174.07,18.4559194]
[1729772893053,0.12549,174.1,174.06,19.0364761]
[1729772896475,0.12549,174.1,174.06,0.5805567]
[1729772896678,0.12549,174.09,174.06,0.5805567]
[1729772898373,0.25098,174.08,174.06,0.5805567]
[1729772898577,0.12549,174.07,174.06,0.5805567]
[1729772900777,0.37647,174.07,174.06,0.5805567]
[1729772901181,6.12127,174.07,174.06,0.5805567]
[1729772905673,0.37647,174.07,174.06,0.5805567]
[1729772908382,6.12127,174.07,174.06,0.5805567]
[1729772911481,5.7431,174.12,174.06,19.0364761]
[1729772911666,22.75325929,174.11,174.06,19.0364761]
[1729772911871,4.42282989,174.1,174.06,0.5805567]
[1729772912073,18.5814094,174.1,174.06,0.5805567]
[1729772912882,0.12549,174.08,174.06,0.5805567]
[1729772913089,0.12549,174.07,174.06,0.5805567]
[1729772914869,0.18974233,174.08,174.06,0.5805567]
[1729772917191,5.7447,174.08,174.06,0.5805567]
[1729772917371,0.37647,174.07,174.06,0.5805567]
[1729772921380,6.12127,174.07,174.06,0.5805567]
[1729772921581,10.42710389,174.07,174.06,0.5805567]
[1729772923687,10.42689905,174.07,174.06,0.5805567]
[1729772926189,52.65970245,174.07,174.06,0.5805567]
[1729772930193,52.65910729,174.07,174.06,0.5805567]
[1729772930371,48.3540734,174.07,174.06,0.5805567]
[1729772930568,52.65888321,174.07,174.06,0.5805567]
[1729772932307,34.20296381,174.07,174.06,0.5805567]
[1729772932595,52.65888321,174.07,174.06,0.5805567]
[1729772934071,52.65831122,174.07,174.06,0.5805567]
[1729772936288,34.20239182,174.07,174.06,0.5805567]
[1729772937702,29.898154,174.07,174.06,0.5805567]
[1729772937904,34.20198096,174.07,174.06,0.5805567]
[1729772941102,41.08855272,174.07,174.06,0.5805567]
[1729772941511,34.20198096,174.07,174.06,0.5805567]
[1729772941705,52.65790036,174.07,174.06,0.5805567]
[1729772942596,52.65791051,174.07,174.06,0.5805567]
[1729772943104,48.3540734,174.07,174.06,0.5805567]
[1729772943310,52.65798151,174.07,174.06,0.5805567]
[1729772943512,34.20206211,174.07,174.06,0.5805567]
[1729772944109,29.898154,174.07,174.06,0.5805567]
[1729772944291,34.20201356,174.07,174.06,0.5805567]
[1729772944612,41.08787535,174.07,174.06,0.5805567]
[1729772944913,34.20186569,174.07,174.06,0.5805567]
[1729772946299,29.898154,174.07,174.06,0.5805567]
[1729772946499,34.20175019,174.07,174.06,0.5805567]
[1729772946704,52.65766959,174.07,174.06,0.5805567]
[1729772946902,59.54319218,174.07,174.06,0.5805567]
[1729772947294,52.65766959,174.07,174.06,0.5805567]
[1729772947514,59.54296708,174.07,174.06,0.5805567]
[1729772948102,41.08704768,174.07,174.06,0.5805567]
[1729772948301,52.65766959,174.07,174.06,0.5805567]
[1729772949915,59.54264752,174.07,174.06,0.5805567]
[1729772950415,52.65766959,174.07,174.06,0.5805567]
[1729772952214,52.65687625,174.07,174.06,0.5805567]
[1729772956526,52.65663503,174.07,174.06,0.5805567]
[1729772960121,52.65663503,174.07,174.06,0.4551567]
[1729772960306,79.54204078,174.07,174.06,0.4551567]
[1729772960507,79.64204078,174.07,174.06,0.4551567]
[1729772962521,61.18612138,174.07,174.06,0.4551567]
[1729772962723,79.64204078,174.07,174.06,0.4551567]
[1729772964025,79.64069643,174.07,174.06,0.4551567]
[1729772964216,79.74069643,174.07,174.06,0.4551567]
[1729772966027,79.54069643,174.07,174.06,0.4551567]
[1729772966229,79.74069643,174.07,174.06,0.3297567]
[1729772967904,79.73879048,174.07,174.06,0.3297567]
[1729772968216,68.5540734,174.07,174.06,0.3297567]
[1729772968411,79.73907063,174.07,174.06,0.3297567]
[1729772970325,79.63907063,174.07,174.06,0.3297567]
[1729772970629,79.73907063,174.07,174.06,0.3297567]
[1729772971425,79.63907063,174.07,174.06,0.3297567]
[1729772971734,79.73907063,174.07,174.06,0.3297567]
[1729772974428,79.63907063,174.07,174.06,0.3297567]
[1729772974824,79.73907063,174.07,174.06,0.3297567]
[1729772975829,61.2804179,174.07,174.06,0.3297567]
[1729772976028,79.7363373,174.07,174.06,0.3297567]
[1729772976223,79.6363373,174.07,174.06,0.3297567]
[1729772976415,79.7363373,174.07,174.06,0.3297567]
[1729772976930,79.6363373,174.07,174.06,0.3297567]
[1729772977116,79.7363373,174.07,174.06,0.3297567]
[1729772978015,0.22549,174.04,173.94,16.3437]
[1729772978213,18.5814094,173.95,173.94,16.3437]
[1729772978541,0.12549,173.95,173.94,16.3437]
[1729772981022,24.5810894,173.95,173.94,16.3437]
[1729772981230,18.8323894,173.95,173.94,16.3437]
[1729772982732,0.37647,173.95,173.94,16.3437]
[1729772984007,0.12549,173.95,173.94,16.3437]
[1729772984245,18.0814094,173.96,173.94,16.3437]
[1729772984539,0.25098,173.99,173.94,34.7996194]
[1729772984730,18.7068994,173.99,173.94,34.7996194]
[1729772985314,0.12549,173.98,173.94,16.3437]
[1729772986145,18.5814094,173.98,173.94,16.3437]
[1729772987739,0.12549,173.98,173.94,34.7996194]
[1729772989222,0.37647,173.96,173.94,16.3437]
[1729772990542,0.37647,173.96,173.92,18.4559194]
[1729772990942,18.8323894,173.96,173.91,18.4559194]
[1729772991114,18.8323894,173.96,173.89,22.5658]
[1729772991115,24.5808894,173.96,173.89,22.5658]
[1729772991422,24.5808894,173.96,173.9,18.4559194]
[1729772991621,18.4559194,173.95,173.89,41.0217194]
[1729772992355,24.2048194,173.95,173.89,41.0217194]
[1729772992643,24.2048194,173.95,173.89,22.5658]
[1729772992820,24.2048194,173.95,173.89,41.0217194]
[1729772993647,0.37647,173.94,173.89,22.5658]
[1729772993940,0.12549,173.91,173.89,16.3547]
[1729772994319,0.12549,173.91,173.87,18.4559194]
[1729772994746,18.5814094,173.91,173.86,18.4559194]
[1729772995929,18.5814094,173.91,173.85,21.2744]
[1729772995930,18.8323894,173.91,173.85,21.2744]
[1729772996244,0.37647,173.91,173.86,18.4559194]
[1729772996537,0.37647,173.91,173.87,18.4559194]
[1729772997051,6.12667,173.91,173.87,18.4559194]
[1729772997519,6.12667,173.91,173.85,21.2744]
[1729772997520,0.12549,173.91,173.88,18.4559194]
[1729772997723,0.25098,173.93,173.89,18.4559194]
[1729772998048,0.12549,173.92,173.85,21.2744]
[1729772998226,0.12549,173.92,173.88,18.4559194]
[1729772998632,18.5814094,173.92,173.87,18.4559194]
[1729772999034,24.3312094,173.92,173.87,18.4559194]
[1729772999650,24.3312094,173.92,173.85,21.2744]
[1729772999938,24.3312094,173.92,173.87,18.4559194]
[1729773000347,9.2279597,173.88,173.82,5.97064413]
[1729773000550,0.12549,173.86,173.79,6.6544]
[1729773001048,6.00128,173.91,173.79,6.6544]
[1729773001348,0.1,173.94,173.87,18.4559194]
[1729773001349,29.525984,173.94,173.87,18.4559194]
[1729773001553,0.25098,173.93,173.88,18.4559194]
[1729773001726,0.25098,173.93,173.87,18.4559194]
[1729773001727,18.4559194,173.92,173.87,18.4559194]
[1729773001924,0.12549,173.91,173.87,18.4559194]
[1729773002653,22.6239,173.99,173.9,18.4559194]
[1729773002832,18.4559194,174.02,173.96,18.4559194]
[1729773003035,18.4559194,173.98,173.92,18.4559194]
[1729773003245,18.4559194,173.95,173.91,15.1304]
[1729773003442,0.12549,173.97,173.86,21.4779]
[1729773003746,0.12549,173.95,173.86,15.1304]
[1729773004054,0.22549,173.94,173.82,6.1064]
[1729773004227,0.12549,173.92,173.81,16.4972]
[1729773004427,0.12549,173.87,173.82,18.4559194]
[1729773004643,0.12549,173.92,173.84,18.4559194]
[1729773004644,0.12549,173.91,173.84,18.4559194]
[1729773004839,0.12549,173.92,173.87,18.4559194]
[1729773005156,0.12549,173.92,173.9,18.4559194]
[1729773005538,5.87529,173.92,173.88,18.4559194]
[1729773005843,5.87529,173.92,173.87,18.4559194]
[1729773006154,5.87529,173.92,173.85,6.47]
[1729773006155,0.25098,173.92,173.88,18.4559194]
[1729773006349,9.2279597,173.9,173.81,16.4972]
[1729773006646,16.7201,173.96,173.86,18.4559194]
[1729773006828,0.25098,173.91,173.86,18.4559194]
[1729773007027,0.12549,173.9,173.87,18.4559194]
[1729773007243,0.12549,173.9,173.86,18.4559194]
[1729773007448,0.12549,173.9,173.89,18.4559194]
[1729773008044,0.37647,173.92,173.88,18.4559194]
[1729773008241,24.2060194,173.91,173.86,18.4559194]
[1729773008556,0.12549,173.92,173.89,18.4559194]
[1729773008727,0.25098,173.92,173.86,6.2546]
[1729773008932,0.37647,173.92,173.86,6.2546]
[1729773009131,5.7481,173.97,173.91,18.4559194]
[1729773009439,5.7481,173.97,173.89,15.8243]
[1729773009440,5.7481,173.97,173.92,18.4559194]
[1729773009637,5.7481,173.97,173.93,18.4559194]
[1729773010135,18.4559194,174.01,173.95,18.4559194]
[1729773010553,0.12549,174.0,173.95,18.4559194]
[1729773010841,18.5814094,173.98,173.93,18.4559194]
[1729773011242,18.4559194,173.98,173.92,18.4559194]
[1729773011442,0.12549,173.95,173.92,18.4559194]
[1729773011645,20.12549,173.99,173.94,18.4559194]
[1729773011846,0.25098,173.98,173.94,18.4559194]
[1729773012056,18.4559194,173.96,173.9,18.4559194]
[1729773012369,0.12549,173.94,173.89,15.8243]
[1729773012647,0.12549,173.94,173.92,18.4559194]
[1729773012826,0.12549,173.96,173.92,18.4559194]
[1729773013023,0.12549,173.96,173.94,18.4559194]
[1729773013427,0.25098,173.97,173.94,18.4559194]
[1729773013823,0.25098,173.97,173.89,15.8243]
[1729773013824,0.25098,173.97,173.92,18.4559194]
[1729773014247,0.12549,173.97,173.93,18.4559194]
[1729773014447,0.12549,173.97,173.94,18.4559194]
[1729773014649,0.12549,173.98,173.95,18.4559194]
[1729773014951,0.25098,173.98,173.94,18.4559194]
[1729773015531,0.25098,173.98,173.95,18.4559194]
[1729773015830,0.12549,173.98,173.96,18.4559194]
[1729773016234,5.87229,174.01,173.96,18.4559194]
[1729773016432,5.87229,174.01,173.94,18.4559194]
[1729773016433,18.7068994,174.0,173.94,18.4559194]
[1729773016632,18.7068994,174.0,173.95,18.4559194]
[1729773016633,0.25098,174.0,173.95,18.4559194]
[1729773017660,5.99818,174.0,173.95,18.4559194]
[1729773018156,18.8323894,173.97,173.89,15.8243]
[1729773018343,18.8323894,173.97,173.93,18.4559194]
[1729773018344,0.12549,173.97,173.93,18.4559194]
[1729773018530,0.12549,173.97,173.94,18.4559194]
[1729773019060,0.12549,173.97,173.92,18.4559194]
[1729773019741,5.87369,173.97,173.92,18.4559194]
[1729773019941,5.87369,173.97,173.93,18.4559194]
[1729773020145,25.7464,174.02,173.96,18.4559194]
[1729773020348,18.4559194,173.99,173.93,18.4559194]
[1729773020644,18.5814094,173.98,173.92,18.4559194]
[1729773021035,18.5814094,173.96,173.9,18.4559194]
[1729773021366,0.12549,173.96,173.93,18.4559194]
[1729773021844,5.87419,173.96,173.91,18.4559194]
[1729773022643,5.87419,173.96,173.92,18.4559194]
[1729773023937,9.4789397,173.95,173.89,18.4559194]
[1729773024150,0.25098,173.93,173.88,18.4559194]
[1729773024338,0.25098,173.91,173.86,18.4559194]
[1729773024543,18.4559194,173.93,173.87,18.4559194]
[1729773024960,24.5822894,173.92,173.85,15.1264]
[1729773025137,24.5822894,173.92,173.86,18.4559194]
[1729773025862,6.12637,173.92,173.87,18.4559194]
[1729773026163,0.37647,173.92,173.89,18.4559194]
[1729773026365,20.25098,173.95,173.91,18.4559194]
[1729773026663,0.12549,173.92,173.88,18.4559194]
[1729773026870,18.8323894,173.92,173.87,18.4559194]
[1729773027056,0.37647,173.92,173.88,9.2279597]
[1729773027387,0.25098,173.94,173.9,18.4559194]
[1729773027544,0.25098,173.94,173.91,18.4559194]
[1729773027741,20.0,173.96,173.93,18.4559194]
[1729773028060,20.0,173.96,173.92,18.4559194]
[1729773028245,0.12549,173.96,173.92,18.4559194]
[1729773029165,5.7484,173.97,173.92,18.4559194]
[1729773029469,0.25098,173.96,173.92,18.4559194]
[1729773029771,0.25098,173.96,173.91,18.4559194]
[1729773030346,5.99948,173.96,173.91,28.87593646]
[1729773030962,5.99948,173.96,173.92,28.87593646]
[1729773031140,20.0,173.97,173.94,28.87593646]
[1729773031963,0.37647,173.97,173.93,28.87593646]
[1729773032166,6.12467,173.97,173.93,28.87593646]
[1729773032539,6.12467,173.97,173.92,28.87593646]
[1729773032947,35.00060646,173.97,173.91,28.87593646]
[1729773034253,6.12467,173.97,173.92,28.87593646]
[1729773035169,6.12467,173.97,173.93,28.87593646]
[1729773035749,0.1,174.03,173.96,28.87593646]
[1729773035750,28.87593646,174.03,173.96,28.87593646]
[1729773036077,28.87593646,173.99,173.93,28.87593646]
[1729773036250,29.00142646,174.0,173.94,28.87593646]
[1729773036579,20.7826,174.02,173.97,28.87593646]
[1729773036742,0.12549,174.0,173.97,28.87593646]
[1729773036946,5.87269,174.0,173.96,28.87593646]
[1729773037142,0.12549,174.0,173.95,28.87593646]
[1729773037377,0.12549,174.0,173.96,28.87593646]
[1729773037973,0.12549,174.0,173.97,28.87593646]
[1729773038965,5.87269,174.0,173.97,28.87593646]
[1729773039951,5.87269,174.0,173.96,28.87593646]
[1729773040364,0.12549,174.0,173.97,28.87593646]
[1729773040572,5.87269,174.0,173.97,28.87593646]
[1729773040964,5.87269,174.0,173.96,28.87593646]
[1729773041358,0.25098,173.99,173.95,28.87593646]
[1729773041559,0.25098,173.99,173.94,28.87593646]
[1729773042479,25.99858,173.99,173.94,28.87593646]
[1729773044174,5.99858,173.99,173.95,28.87593646]
[1729773044579,0.12549,173.98,173.94,14.43796823]
[1729773044887,0.25098,173.97,173.92,28.87593646]
[1729773045179,29.12691646,173.97,173.92,28.87593646]
[1729773045685,29.12691646,173.97,173.91,28.87593646]
[1729773045979,29.12691646,173.97,173.92,28.87593646]
[1729773046151,0.25098,173.97,173.92,28.87593646]
[1729773046349,34.87531646,173.97,173.92,28.87593646]
[1729773047959,5.99938,173.97,173.93,28.87593646]
[1729773048162,34.87531646,173.97,173.91,28.87593646]
[1729773048480,5.99938,173.97,173.92,28.87593646]
[1729773049569,34.87531646,173.97,173.91,28.87593646]
[1729773050174,0.12549,173.93,173.88,28.87593646]
[1729773050480,0.12549,173.93,173.89,18.4858579]
[1729773051256,0.25098,173.93,173.88,18.4858579]
[1729773051477,18.7368379,173.93,173.87,18.4858579]
[1729773052282,0.12549,173.91,173.87,28.88754578]
[1729773053875,0.12549,173.89,173.84,28.88754578]
[1729773054075,0.12549,173.89,173.85,28.88754578]
[1729773054480,0.12549,173.89,173.84,28.88754578]
[1729773055486,6.12737,173.89,173.84,14.44377289]
[1729773055681,35.01491578,173.89,173.83,28.88754578]
[1729773055990,35.01491578,173.89,173.79,6.2866]
[1729773055991,28.88754578,173.88,173.82,28.88754578]
[1729773057290,0.12549,173.86,173.81,28.88754578]